bitfinex-derivatives/quotes_SOLF0:USTF0_20250709
["timestamp","ask_amount","ask_price","bid_price","bid_amount"]
[1752092878258,4.15131005,155.76,155.7,8.9277166]
[1752092878458,4.15131005,155.74,155.69,8.9277166]
[1752092878658,2.2732,155.77,155.69,8.9277166]
[1752092878860,4.15131005,155.74,155.69,8.9277166]
[1752092879552,4.15131005,155.74,155.68,8.9277166]
[1752092879758,6.4209,155.71,155.68,15.3493166]
[1752092880353,6.4211,155.7,155.68,15.3493166]
[1752092880656,4.15131005,155.74,155.68,15.3493166]
[1752092880862,6.4212,155.7,155.68,8.9277166]
[1752092881159,4.15131005,155.74,155.68,8.9277166]
[1752092881363,6.4215,155.7,155.67,8.9277166]
[1752092881664,195.28,155.72,155.67,8.9277166]
[1752092881849,6.4214,155.7,155.67,8.9277166]
[1752092882455,6.4214,155.7,155.68,8.9277166]
[1752092882858,6.4214,155.7,155.67,15.3499166]
[1752092883054,6.4216,155.69,155.67,8.9277166]
[1752092883255,195.28,155.72,155.67,8.9277166]
[1752092883657,6.4214,155.7,155.67,15.3500166]
[1752092884561,6.4214,155.7,155.67,6.4223]
[1752092885167,6.4208,155.71,155.67,15.3500166]
[1752092885667,195.28,155.72,155.67,15.3500166]
[1752092886167,6.4213,155.7,155.67,6.4223]
[1752092886363,195.28,155.72,155.68,6.4216]
[1752092886565,6.4227,155.66,155.65,8.9277166]
[1752092886766,4.15131005,155.7,155.63,13.3263166]
[1752092887166,6.4225,155.67,155.64,6.4235]
[1752092887566,195.28,155.72,155.66,6.4227]
[1752092887868,199.43131005,155.72,155.64,13.07902665]
[1752092888166,199.43131005,155.72,155.65,6.4231]
[1752092888567,6.4222,155.68,155.65,6.4231]
[1752092888867,6.4222,155.68,155.65,15.3508166]
[1752092889063,6.4211,155.7,155.65,8.9277166]
[1752092889268,194.92,155.73,155.66,13.07902665]
[1752092889658,6.4207,155.71,155.68,6.4217]
[1752092890463,4.15131005,155.76,155.67,4.15131005]
[1752092890672,6.42451005,155.77,155.68,13.07902665]
[1752092890974,6.4202,155.73,155.7,6.4209]
[1752092891164,194.94,155.76,155.68,13.07902665]
[1752092891569,6.42,155.73,155.7,6.421]
[1752092891871,194.94,155.76,155.68,13.07902665]
[1752092892071,194.94,155.76,155.69,8.9277166]
[1752092892269,6.4199,155.73,155.71,6.4206]
[1752092892467,6.4199,155.73,155.69,8.9277166]
[1752092892673,6.4199,155.73,155.7,6.4208]
[1752092893369,195.14,155.76,155.69,19.50032665]
[1752092893570,6.42451005,155.77,155.69,8.9277166]
[1752092893772,6.4202,155.73,155.7,6.4208]
[1752092894064,6.4202,155.73,155.69,13.07902665]
[1752092894575,6.4202,155.73,155.7,6.4208]
[1752092895064,6.4204,155.72,155.69,13.07902665]
[1752092895471,195.0,155.76,155.69,13.07902665]
[1752092895668,195.0,155.76,155.71,6.4205]
[1752092895669,6.4196,155.74,155.71,6.4205]
[1752092895871,195.0,155.76,155.71,4.15131005]
[1752092896171,6.4205,155.72,155.69,15.3490166]
[1752092896569,6.4205,155.72,155.69,6.4213]
[1752092897173,6.4207,155.71,155.69,6.4213]
[1752092897371,4.15131005,155.72,155.66,8.9277166]
[1752092897570,4.15131005,155.72,155.65,8.9277166]
[1752092897776,6.4224,155.67,155.65,8.9277166]
[1752092898375,6.422,155.68,155.65,15.3505166]
[1752092898871,4.15131005,155.72,155.65,8.9277166]
[1752092899271,4.15131005,155.72,155.64,19.50242665]
[1752092899481,6.4216,155.69,155.64,19.50242665]
[1752092899779,6.4216,155.69,155.65,6.423]
[1752092899975,6.4221,155.68,155.64,8.9277166]
[1752092900480,6.4221,155.68,155.64,15.3511166]
[1752092900775,4.15131005,155.7,155.63,8.9277166]
[1752092901075,4.15131005,155.68,155.63,8.9277166]
[1752092901276,6.4229,155.66,155.62,15.3518166]
[1752092901577,4.15131005,155.68,155.61,8.9277166]
[1752092902073,4.15131005,155.66,155.61,8.9277166]
[1752092902275,4.15131005,155.66,155.6,15.3528166]
[1752092902475,4.15131005,155.64,155.58,8.9277166]
[1752092902679,6.4256,155.59,155.58,8.9277166]
[1752092902880,4.15131005,155.62,155.55,13.07902665]
[1752092903079,198.89131005,155.62,155.55,13.07902665]
[1752092903272,198.89131005,155.62,155.56,6.4266]
[1752092904188,6.4257,155.59,155.56,6.4266]
[1752092904578,198.89131005,155.62,155.54,13.5955166]
[1752092904773,4.15131005,155.6,155.53,8.9277166]
[1752092905078,6.4263,155.58,155.52,8.9277166]
[1752092905276,4.15131005,155.6,155.53,8.9277166]
[1752092905479,4.15131005,155.6,155.52,8.9277166]
[1752092905677,6.4266,155.57,155.54,6.4275]
[1752092906183,4.15131005,155.6,155.55,6.4272]
[1752092906479,4.15131005,155.62,155.53,13.07902665]
[1752092906682,4.15131005,155.62,155.54,8.9277166]
[1752092906886,4.15131005,155.6,155.53,13.07902665]
[1752092907384,6.4258,155.59,155.55,6.427]
[1752092907586,558.93131005,155.64,155.54,8.9277166]
[1752092907785,558.93131005,155.64,155.56,4.15131005]
[1752092908086,194.76,155.63,155.58,6.426]
[1752092908390,6.4244,155.62,155.59,6.4255]
[1752092909083,6.4242,155.63,155.57,4.15131005]
[1752092909479,6.4242,155.63,155.57,15.22882665]
[1752092909687,6.4242,155.63,155.6,6.4249]
[1752092909985,554.78,155.64,155.57,11.0775166]
[1752092910187,554.78,155.64,155.59,6.4253]
[1752092910389,554.78,155.64,155.6,8.11460923]
[1752092910583,554.78,155.64,155.61,8.11460923]
[1752092910787,554.78,155.64,155.62,8.11460923]
[1752092910978,6.4248,155.61,155.57,11.0775166]
[1752092911178,6.4248,155.61,155.58,8.11719686]
[1752092911382,6.4248,155.61,155.59,8.11719686]
[1752092911577,6.4248,155.61,155.6,8.11719686]
[1752092911777,561.02176984,155.64,155.58,8.11867592]
[1752092911987,561.02176984,155.64,155.59,8.11867592]
[1752092912283,561.02176984,155.64,155.56,8.9277166]
[1752092912284,6.4248,155.61,155.6,8.11867592]
[1752092912478,561.02176984,155.64,155.56,6.4266]
[1752092912682,561.02176984,155.64,155.57,8.11959994]
[1752092912987,6.4255,155.6,155.58,8.11959994]
[1752092913187,6.4255,155.6,155.59,8.11959994]
[1752092913689,6.4249,155.61,155.59,8.11959994]
[1752092913890,6.4249,155.61,155.6,8.1190156]
[1752092915093,6.4263,155.58,155.55,2.2439]
[1752092915485,6.4263,155.58,155.55,8.6711]
[1752092916393,554.78,155.64,155.55,17.41338644]
[1752092916587,554.78,155.64,155.56,8.9277166]
[1752092916588,194.8,155.63,155.56,8.9277166]
[1752092916793,554.78,155.64,155.59,6.24176984]
[1752092917092,554.78,155.64,155.6,8.9277166]
[1752092917292,554.78,155.64,155.6,11.0712166]
[1752092917694,554.78,155.64,155.6,17.31298644]
[1752092917890,554.78,155.64,155.61,6.4247]
[1752092918091,554.78,155.64,155.6,17.31298644]
[1752092918395,6.4232,155.65,155.62,6.424]
[1752092918598,133.18084828,155.67,155.61,8.93355999]
[1752092918896,327.98084828,155.67,155.63,6.4236]
[1752092919191,327.98084828,155.67,155.61,15.17532983]
[1752092919398,194.8,155.67,155.61,8.93355999]
[1752092919598,194.8,155.67,155.6,2.1435]
[1752092920092,6.4242,155.63,155.6,2.1435]
[1752092920393,194.8,155.67,155.6,11.07705999]
[1752092920594,6.4232,155.65,155.61,8.93355999]
[1752092920793,194.8,155.67,155.61,8.93355999]
[1752092920991,6.4236,155.64,155.61,6.4245]
[1752092923190,6.4236,155.64,155.62,6.4243]
[1752092923595,194.8,155.67,155.61,6.4246]
[1752092924294,6.4238,155.64,155.61,6.4246]
[1752092924502,6.4238,155.64,155.62,6.4243]
[1752092924687,6.4238,155.64,155.6,2.1435]
[1752092924888,6.4241,155.63,155.6,2.1435]
[1752092925087,6.4241,155.63,155.6,8.5685]
[1752092925288,194.8,155.67,155.6,8.5685]
[1752092925493,6.4232,155.65,155.6,2.1435]
[1752092925799,6.4232,155.65,155.6,8.38526984]
[1752092926296,6.4232,155.65,155.62,6.4241]
[1752092926491,6.4232,155.65,155.6,8.38526984]
[1752092927694,6.4229,155.66,155.6,8.38526984]
[1752092927993,6.4229,155.66,155.63,6.4237]
[1752092929397,6.4232,155.65,155.63,6.4237]
[1752092929693,194.72,155.7,155.64,6.24176984]
[1752092930096,555.06,155.72,155.64,6.24176984]
[1752092930298,194.72,155.71,155.64,6.24176984]
[1752092930693,194.72,155.71,155.66,6.4224]
[1752092931298,6.4217,155.69,155.66,6.4224]
[1752092931696,194.72,155.71,155.64,8.93355999]
[1752092931897,194.72,155.71,155.64,13.09060433]
[1752092932401,6.4223,155.67,155.64,10.58044434]
[1752092932600,194.72,155.71,155.63,11.07405999]
[1752092932797,198.87704434,155.71,155.64,4.15704434]
[1752092933000,6.4229,155.66,155.64,4.15704434]
[1752092933392,194.72,155.71,155.64,4.15704434]
[1752092933692,194.7,155.7,155.64,4.15704434]
[1752092933899,194.7,155.7,155.65,6.4231]
[1752092934099,4.15704434,155.72,155.65,6.4231]
[1752092934301,194.68,155.71,155.64,4.15704434]
[1752092934497,6.4218,155.69,155.66,6.4226]
[1752092934697,194.68,155.71,155.64,4.15704434]
[1752092935099,6.4223,155.68,155.65,6.4229]
[1752092935402,6.4223,155.68,155.64,4.15704434]
[1752092936205,194.66,155.71,155.64,13.09060433]
[1752092936407,194.66,155.71,155.64,4.15704434]
[1752092937506,194.66,155.71,155.65,6.4231]
[1752092937902,6.4223,155.68,155.66,6.4226]
[1752092938206,6.4223,155.68,155.64,4.15704434]
[1752092938404,6.4223,155.68,155.64,13.09060433]
[1752092938707,6.4223,155.68,155.65,6.4231]
[1752092939007,6.4223,155.68,155.64,13.09060433]
[1752092939607,6.4223,155.68,155.65,6.4231]
[1752092939908,6.4223,155.68,155.66,6.4226]
[1752092940300,194.62,155.72,155.66,8.93355999]
[1752092940607,4.15704434,155.74,155.67,6.4221]
[1752092940807,194.62,155.73,155.67,6.4221]
[1752092941010,194.62,155.73,155.66,13.09060433]
[1752092941209,194.62,155.73,155.66,4.15704434]
[1752092941409,6.4221,155.68,155.66,13.09060433]
[1752092941709,6.4221,155.68,155.66,19.51310433]
[1752092941909,6.4221,155.68,155.66,10.57954434]
[1752092942108,6.4221,155.68,155.66,19.54484483]
[1752092942304,6.4221,155.68,155.66,13.12234483]
[1752092942507,6.4221,155.68,155.65,8.96530049]
[1752092943208,6.4221,155.68,155.66,15.38780049]
[1752092943406,6.4221,155.68,155.66,6.4225]
[1752092943610,6.4221,155.68,155.66,15.38857454]
[1752092943909,198.77704434,155.73,155.66,8.96607454]
[1752092944110,6.4223,155.67,155.65,15.38907454]
[1752092946214,4.15704434,155.72,155.65,8.96607454]
[1752092946410,194.62,155.73,155.65,8.96607454]
[1752092946607,6.4216,155.69,155.66,6.4227]
[1752092947215,6.422,155.68,155.66,6.4227]
[1752092947514,198.71704434,155.74,155.65,13.12020025]
[1752092947711,4.15704434,155.72,155.65,8.96315591]
[1752092948215,4.15704434,155.72,155.66,6.4225]
[1752092948411,4.15704434,155.7,155.65,8.96315591]
[1752092948618,4.15704434,155.7,155.62,13.12020025]
[1752092948916,6.4226,155.67,155.64,6.4232]
[1752092949506,6.4226,155.67,155.63,8.96315591]
[1752092950013,6.4221,155.68,155.65,6.4228]
[1752092951615,6.4218,155.69,155.66,6.4227]
[1752092951918,4.15704434,155.72,155.66,6.4227]
[1752092952416,6.4221,155.68,155.66,6.4227]
[1752092952617,6.4221,155.68,155.65,15.38615591]
[1752092953008,4.15704434,155.7,155.65,8.96315591]
[1752092953214,4.15704434,155.7,155.64,8.96315591]
[1752092953616,4.15704434,155.72,155.66,6.4224]
[1752092954112,4.15704434,155.72,155.65,8.96315591]
[1752092954320,198.63704434,155.73,155.67,8.96315591]
[1752092954714,6.4214,155.7,155.67,6.4222]
[1752092955019,6.4214,155.7,155.68,3.73267897]
[1752092955221,6.4214,155.7,155.69,3.73267897]
[1752092956916,6.4214,155.7,155.69,10.45648639]
[1752092957314,6.4214,155.7,155.69,6.72380742]
[1752092958724,6.4214,155.7,155.69,10.4577992]
[1752092960022,6.4214,155.7,155.69,6.72380742]
[1752092960423,6.4228,155.66,155.65,8.96315591]
[1752092960615,6.4228,155.66,155.65,12.69903607]
[1752092961626,6.4228,155.66,155.65,3.73588016]
[1752092967734,6.4226,155.67,155.65,3.73588016]
[1752092968034,194.36,155.67,155.66,3.73588016]
[1752092968430,2.1854,155.74,155.66,3.73588016]
[1752092968627,4.15704434,155.73,155.67,12.73702869]
[1752092968830,4.15704434,155.73,155.68,12.73702869]
[1752092969033,194.34,155.72,155.69,3.73588016]
[1752092969230,194.34,155.72,155.7,3.73588016]
[1752092969231,6.4207,155.71,155.7,3.73588016]
[1752092970231,6.4207,155.71,155.66,9.00114853]
[1752092970232,4.15704434,155.71,155.66,9.00114853]
[1752092970533,4.15704434,155.71,155.67,9.00114853]
[1752092971734,6.4223,155.68,155.67,9.00114853]
[1752092971933,200.7423,155.68,155.67,9.00114853]
[1752092974036,2.1854,155.74,155.67,4.15704434]
[1752092974226,6.33124434,155.75,155.7,9.0065455]
[1752092974432,6.4193,155.75,155.72,6.4202]
[1752092974632,194.28,155.74,155.71,9.0065455]
[1752092975030,6.4203,155.73,155.71,9.0065455]
[1752092975333,200.6803,155.73,155.71,9.0065455]
[1752092975734,200.6803,155.73,155.7,9.0065455]
[1752092975934,200.6803,155.73,155.71,9.0065455]
[1752092976134,194.26,155.73,155.72,9.0065455]
[1752092976334,554.94,155.76,155.71,9.0065455]
[1752092976637,194.26,155.75,155.71,13.16358984]
[1752092976838,200.6793,155.75,155.71,13.16358984]
[1752092977035,554.94,155.76,155.71,13.16358984]
[1752092977436,194.24,155.75,155.71,13.16358984]
[1752092977638,194.24,155.75,155.72,6.4202]
[1752092977836,200.6393,155.75,155.72,15.4267455]
[1752092978137,200.6393,155.75,155.72,15.41710818]
[1752092978338,200.6193,155.75,155.72,6.4202]
[1752092978826,6.4196,155.74,155.71,19.57445252]
[1752092979338,6.4196,155.74,155.71,13.15395252]
[1752092979937,6.4196,155.74,155.72,6.86735584]
[1752092980136,6.4196,155.74,155.73,13.6832912]
[1752092980438,200.5996,155.74,155.73,13.68174095]
[1752092987746,194.18,155.74,155.73,13.68174095]
[1752092989248,194.18,155.74,155.73,13.65714238]
[1752092990143,200.5995,155.74,155.73,13.65714238]
[1752092992049,200.5995,155.74,155.73,6.79133679]
[1752092992244,200.5995,155.74,155.73,13.61140104]
[1752092992444,6.4195,155.74,155.73,13.61140104]
[1752092992650,200.3795,155.74,155.73,13.61140104]
[1752092992852,200.3795,155.74,155.69,6.30094434]
[1752092992853,6.4208,155.71,155.69,8.99690818]
[1752092993044,193.96,155.7,155.69,8.99690818]
[1752092993748,193.96,155.7,155.69,13.15395252]
[1752092993950,193.96,155.7,155.69,10.57854434]
[1752092994840,193.94,155.72,155.71,6.4207]
[1752092995755,193.92,155.72,155.71,6.4207]
[1752092997150,193.92,155.72,155.7,15.39088458]
[1752092997853,193.92,155.72,155.71,6.4207]
[1752092998151,6.4197,155.74,155.7,8.96988458]
[1752092998352,193.9,155.73,155.7,8.96988458]
[1752092998550,193.9,155.73,155.69,4.15704434]
[1752092998855,554.94,155.76,155.69,4.15704434]
[1752092999047,193.88,155.75,155.71,4.15704434]
[1752092999353,200.2991,155.75,155.73,6.4196]
[1752092999555,6.4191,155.75,155.73,6.4196]
[1752092999753,200.2791,155.75,155.73,6.4196]
[1752093000351,200.2791,155.75,155.68,4.412]
[1752093000352,193.86,155.75,155.69,4.15704434]
[1752093000751,6.4195,155.74,155.71,6.4205]
[1752093000954,193.86,155.74,155.71,6.4205]
[1752093001154,193.86,155.74,155.71,15.38870659]
[1752093001354,6.4199,155.73,155.71,15.38870659]
[1752093001654,193.84,155.72,155.71,15.38870659]
[1752093003351,193.84,155.72,155.71,8.96820659]
[1752093003958,193.84,155.72,155.66,16.11465313]
[1752093004158,193.84,155.72,155.66,4.15704434]
[1752093004359,6.4211,155.7,155.67,6.4223]
[1752093004653,193.8,155.69,155.67,6.4223]
[1752093004856,193.8,155.69,155.68,6.69949606]
[1752093005053,200.2216,155.69,155.68,6.69949606]
[1752093005250,193.8,155.69,155.68,6.69949606]
[1752093005649,200.2216,155.69,155.68,6.69949606]
[1752093005852,200.2216,155.69,155.68,6.70051977]
[1752093007252,193.8,155.69,155.63,11.95760879]
[1752093007449,4.15704434,155.68,155.63,11.95760879]
[1752093007756,197.95704434,155.69,155.62,16.48760879]
[1752093007956,197.95704434,155.69,155.62,4.53]
[1752093008146,197.95704434,155.69,155.63,6.4238]
[1752093008660,6.423,155.66,155.62,10.9542]
[1752093008851,197.95704434,155.69,155.62,4.53]
[1752093009358,197.95704434,155.69,155.63,6.4236]
[1752093009747,6.4225,155.67,155.63,6.4236]
[1752093010350,6.4227,155.66,155.63,6.4236]
[1752093010556,193.76,155.65,155.6,11.95760879]
[1752093010947,200.1832,155.65,155.61,6.4244]
[1752093011148,193.76,155.65,155.61,6.4244]
[1752093012948,193.76,155.65,155.62,6.4242]
[1752093013152,193.76,155.65,155.63,6.71849891]
[1752093013353,193.7,155.68,155.64,6.71849891]
[1752093013554,6.4222,155.68,155.65,13.14149891]
[1752093013754,6.4222,155.68,155.66,6.71849891]
[1752093014056,6.4222,155.68,155.67,6.71849891]
[1752093015160,200.1422,155.68,155.67,6.71849891]
[1752093015551,200.1422,155.68,155.67,9.891e-05]
[1752093015957,202.2857,155.68,155.67,9.891e-05]
[1752093016152,6.4238,155.64,155.59,11.95760879]
[1752093016361,4.15704434,155.66,155.59,11.95760879]
[1752093016560,4.15704434,155.66,155.58,16.11465313]
[1752093016863,4.15704434,155.66,155.6,6.4249]
[1752093017663,6.424,155.63,155.6,6.4249]
[1752093018365,6.424,155.63,155.61,3.8186159]
[1752093018660,6.4237,155.64,155.62,3.8186159]
[1752093018861,6.4237,155.64,155.63,3.8186159]
[1752093020559,6.4237,155.64,155.63,10.48209868]
[1752093022271,6.4237,155.64,155.63,10.47895369]
[1752093023269,4.16043211,155.67,155.63,10.47895369]
[1752093023462,4.16043211,155.67,155.64,10.47895369]
[1752093023663,4.16043211,155.67,155.65,6.66033779]
[1752093023860,10.58263211,155.67,155.66,6.66033779]
[1752093024062,204.20263211,155.67,155.66,6.66033779]
[1752093025067,200.0422,155.67,155.66,6.66033779]
[1752093025365,200.0422,155.67,155.66,10.47329356]
[1752093025366,6.4222,155.67,155.66,10.47329356]
[1752093025570,6.4222,155.67,155.66,3.81295577]
[1752093025773,193.62,155.68,155.66,3.81295577]
[1752093026064,193.62,155.68,155.61,16.1180409]
[1752093026266,193.62,155.68,155.62,3.81286341]
[1752093026467,193.62,155.68,155.64,6.4232]
[1752093026667,2.3159,155.74,155.65,7.97329552]
[1752093026964,4.16043211,155.72,155.66,3.81286341]
[1752093027154,4.16043211,155.72,155.67,3.81286341]
[1752093027360,6.4221,155.68,155.65,10.58323211]
[1752093027561,4.16043211,155.72,155.66,3.81271392]
[1752093027859,6.4218,155.68,155.67,3.81271392]
[1752093028061,4.16043211,155.68,155.61,11.95760879]
[1752093028258,4.16043211,155.68,155.59,4.16043211]
[1752093028460,4.16043211,155.66,155.58,16.1180409]
[1752093028662,197.74043211,155.66,155.58,11.95760879]
[1752093028863,4.16043211,155.64,155.57,11.95760879]
[1752093029063,4.16043211,155.64,155.56,16.1180409]
[1752093029264,4.16043211,155.62,155.54,4.16043211]
[1752093029668,4.16043211,155.62,155.55,6.4269]
[1752093030266,4.16043211,155.61,155.56,6.4267]
[1752093031159,4.16043211,155.61,155.52,11.95760879]
[1752093031360,4.16043211,155.61,155.53,16.1180409]
[1752093031573,4.16043211,155.61,155.54,6.4274]
[1752093032268,4.16043211,155.59,155.53,6.4279]
[1752093032963,4.16043211,155.59,155.51,4.5871]
[1752093032964,6.427,155.56,155.51,20.7051409]
[1752093033561,6.427,155.56,155.51,16.54470879]
[1752093033768,6.4272,155.55,155.51,16.54470879]
[1752093034476,6.4272,155.55,155.52,6.4282]
[1752093034678,6.4269,155.56,155.51,16.54470879]
[1752093034974,4.16043211,155.57,155.51,16.54470879]
[1752093035173,6.4275,155.55,155.51,4.5871]
[1752093035366,4.16043211,155.57,155.5,11.95760879]
[1752093035675,4.16043211,155.57,155.51,13.10136123]
[1752093035868,6.4275,155.55,155.52,6.67256123]
[1752093036069,6.4275,155.55,155.53,6.67256123]
[1752093036270,6.4275,155.55,155.54,6.67256123]
[1752093038174,6.428,155.53,155.48,4.16043211]
[1752093038374,6.428,155.53,155.49,6.66500311]
[1752093038573,6.428,155.53,155.5,6.66500311]
[1752093038774,6.428,155.53,155.51,6.66500311]
[1752093039267,6.4278,155.54,155.52,6.66270994]
[1752093039463,6.4278,155.54,155.53,6.66270994]
[1752093041977,6.4281,155.53,155.5,6.4291]
[1752093042172,6.4281,155.53,155.51,3.72796572]
[1752093042376,6.4281,155.53,155.49,6.4294]
[1752093042576,4.16043211,155.55,155.5,3.72713209]
[1752093042775,4.16043211,155.55,155.46,6.43893211]
[1752093042980,4.16043211,155.55,155.48,6.43]
[1752093043271,6.4288,155.52,155.49,3.72736959]
[1752093043474,6.4288,155.52,155.48,6.43]
[1752093043676,6.4288,155.52,155.49,3.72622392]
[1752093043877,6.4289,155.51,155.48,6.43]
[1752093044075,4.16043211,155.53,155.48,6.43]
[1752093044684,6.4289,155.51,155.47,6.4304]
[1752093044873,4.16043211,155.53,155.48,3.72687084]
[1752093045177,4.16043211,155.53,155.46,6.43893211]
[1752093045374,6.4288,155.52,155.48,6.4298]
[1752093045674,4.16043211,155.53,155.48,6.4298]
[1752093045979,154.98,155.56,155.48,4.16043211]
[1752093046173,2.1905,155.58,155.49,3.72558247]
[1752093046476,197.58043211,155.57,155.51,6.4286]
[1752093046978,6.4275,155.55,155.48,4.16043211]
[1752093047278,6.4275,155.55,155.49,10.40025611]
[1752093047473,6.4275,155.55,155.52,6.4282]
[1752093047678,197.58043211,155.57,155.53,6.67422189]
[1752093047879,197.58043211,155.57,155.54,6.67422189]
[1752093048074,197.58043211,155.57,155.52,6.4282]
[1752093048280,197.58043211,155.57,155.53,6.67640023]
[1752093048474,197.58043211,155.57,155.54,6.67640023]
[1752093048675,6.4268,155.56,155.53,6.4279]
[1752093048876,6.4268,155.56,155.54,6.67640023]
[1752093049176,6.4256,155.59,155.56,6.4265]
[1752093049379,6.4256,155.59,155.57,6.67632517]
[1752093049581,6.4253,155.6,155.57,13.10242517]
[1752093049881,555.28,155.66,155.58,14.56488237]
[1752093050074,748.66,155.66,155.6,4.16043211]
[1752093050270,555.28,155.66,155.61,10.40445026]
[1752093050472,555.28,155.66,155.62,10.40531922]
[1752093050677,555.28,155.66,155.63,6.67632517]
[1752093050877,559.44043211,155.66,155.58,4.16043211]
[1752093051079,559.44043211,155.66,155.59,10.40781076]
[1752093051270,559.44043211,155.66,155.52,8.62173211]
[1752093051271,6.4247,155.61,155.6,10.40781076]
[1752093051475,6.4247,155.61,155.6,6.67853025]
[1752093051676,197.52043211,155.62,155.56,6.67853025]
[1752093051876,193.36,155.62,155.57,10.40935074]
[1752093052176,197.52043211,155.62,155.58,6.67853025]
[1752093052477,4.16043211,155.6,155.54,4.16043211]
[1752093052678,4.16043211,155.6,155.55,3.73218775]
[1752093052983,4.16043211,155.6,155.56,3.73218775]
[1752093053176,4.16043211,155.58,155.52,4.4613]
[1752093053375,197.46043211,155.58,155.53,3.73270953]
[1752093053571,197.46043211,155.58,155.54,3.73270953]
[1752093053777,197.46043211,155.58,155.55,3.73267568]
[1752093053980,197.46043211,155.58,155.53,6.4279]
[1752093054179,6.4264,155.57,155.54,3.73267587]
[1752093054483,197.46043211,155.58,155.55,3.73267587]
[1752093054774,197.46043211,155.58,155.53,6.4279]
[1752093054980,197.46043211,155.58,155.54,3.73102813]
[1752093055281,6.4268,155.56,155.52,10.8894]
[1752093055478,6.4268,155.56,155.53,3.73151211]
[1752093055680,6.4268,155.56,155.54,3.73151211]
[1752093055876,6.4273,155.55,155.52,10.8895]
[1752093056179,197.46043211,155.58,155.53,3.73151211]
[1752093056385,197.46043211,155.58,155.54,3.73151211]
[1752093056675,197.46043211,155.58,155.52,4.4613]
[1752093056877,197.46043211,155.58,155.53,3.73165817]
[1752093057077,197.46043211,155.58,155.54,3.73165817]
[1752093057382,6.4281,155.53,155.5,6.4291]
[1752093057572,4.16043211,155.54,155.48,11.95760879]
[1752093057775,4.16043211,155.54,155.46,22.59481319]
[1752093057776,4.16043211,155.54,155.47,11.95760879]
[1752093057978,6.4285,155.52,155.49,6.4294]
[1752093058580,4.16043211,155.54,155.46,20.7764409]
[1752093059185,4.16043211,155.54,155.49,6.4296]
[1752093059382,4.16043211,155.54,155.46,20.7764409]
[1752093059787,6.4286,155.52,155.49,6.4295]
[1752093060192,2.3571,155.57,155.46,20.7764409]
[1752093060494,6.51753211,155.57,155.48,16.1180409]
[1752093060686,6.4285,155.52,155.49,6.4295]
[1752093061888,6.4289,155.51,155.49,6.4295]
[1752093062091,6.4289,155.51,155.48,6.4299]
[1752093062294,4.16043211,155.53,155.46,16.59717552]
[1752093062492,4.16043211,155.53,155.46,4.6584]
[1752093062795,4.16043211,155.53,155.45,11.93877552]
[1752093063393,6.4295,155.5,155.45,11.93877552]
[1752093063901,6.4297,155.49,155.47,15.38386541]
[1752093064094,4.16043211,155.52,155.47,15.38386541]
[1752093064294,4.16043211,155.52,155.47,8.95366541]
[1752093064592,4.16043211,155.5,155.47,8.95366541]
[1752093064796,4.16043211,155.5,155.46,8.95366541]
[1752093064992,4.16043211,155.5,155.44,8.95366541]
[1752093065297,6.4307,155.47,155.44,15.38506541]
[1752093065497,555.28,155.56,155.45,4.16891425]
[1752093065698,4.16891425,155.55,155.47,4.16891425]
[1752093065893,4.16891425,155.55,155.48,8.95366541]
[1752093066099,10.59621425,155.55,155.49,13.12257966]
[1752093066296,6.4273,155.55,155.49,13.12257966]
[1752093066596,555.28,155.56,155.49,13.12257966]
[1752093066797,6.4277,155.54,155.49,13.12257966]
[1752093067299,6.4277,155.54,155.51,6.4285]
[1752093068002,6.4273,155.55,155.52,6.4283]
[1752093068203,6.4273,155.55,155.49,13.12257966]
[1752093068204,6.4273,155.55,155.5,8.95366541]
[1752093068403,555.28,155.56,155.5,8.95366541]
[1752093068602,6.4278,155.54,155.51,6.71835761]
[1752093068802,6.4278,155.54,155.52,6.71835761]
[1752093069105,6.4278,155.54,155.53,6.71835761]
[1752093069804,6.4278,155.54,155.53,5.761e-05]
[1752093070004,4.16579794,155.54,155.49,8.95366541]
[1752093070204,4.16579794,155.52,155.48,8.95366541]
[1752093070406,6.4295,155.5,155.48,8.95366541]